[Event "*** Titled Tuesday Blitz"]
[Site "Chess.com"]
[Date "2020.05.26"]
[Round "8"]
[White "grunbergmihai"]
[Black "Shankovskyi"]
[Result "1-0"]
[WhiteElo "2393"]
[BlackElo "2516"]
[TimeControl "180+1"]
[EndTime "11:40:49 PDT"]
[Termination "grunbergmihai won by resignation"]

1. Nf3 {[%clk 0:03:00.9]} 1... d5 {[%clk 0:02:59.6]} 2. c4 {[%clk 0:02:56.2]}
2... e6 {[%clk 0:02:45]} 3. g3 {[%clk 0:02:55.3]} 3... g6 {[%clk 0:02:43.3]} 4.
Bg2 {[%clk 0:02:53.9]} 4... Bg7 {[%clk 0:02:43.6]} 5. O-O {[%clk 0:02:51.4]}
5... Ne7 {[%clk 0:02:44]} 6. d4 {[%clk 0:02:49.5]} 6... O-O {[%clk 0:02:38.4]}
7. Qc2 {[%clk 0:02:47.6]} 7... Nbc6 {[%clk 0:02:38.2]} 8. Rd1 {[%clk 0:02:43.5]}
8... Bd7 {[%clk 0:02:26.1]} 9. e3 {[%clk 0:02:37.1]} 9... Nb4 {[%clk 0:02:17.8]}
10. Qb3 {[%clk 0:02:32]} 10... c5 {[%clk 0:02:17.9]} 11. dxc5 {[%clk 0:02:21.2]}
11... Na6 {[%clk 0:02:11.4]} 12. cxd5 {[%clk 0:02:14.9]} 12... Nxc5 {[%clk
0:02:10.2]} 13. Qa3 {[%clk 0:02:07.5]} 13... Qb6 {[%clk 0:01:56.9]} 14. Nc3
{[%clk 0:01:56.9]} 14... Bxc3 {[%clk 0:01:43.9]} 15. Qxc3 {[%clk 0:01:55.2]}
15... Nxd5 {[%clk 0:01:43.7]} 16. Qa3 {[%clk 0:01:31.5]} 16... Bb5 {[%clk
0:00:58.1]} 17. Nd4 {[%clk 0:01:21.4]} 17... Ba6 {[%clk 0:00:58.1]} 18. Bd2
{[%clk 0:01:15.6]} 18... Nd3 {[%clk 0:00:46.4]} 19. Rab1 {[%clk 0:01:03.9]}
19... e5 {[%clk 0:00:37.6]} 20. Ba5 {[%clk 0:00:44]} 20... Qf6 {[%clk
0:00:36.9]} 21. Rxd3 {[%clk 0:00:42.3]} 21... Bxd3 {[%clk 0:00:35.8]} 22. Qxd3
{[%clk 0:00:41.5]} 22... exd4 {[%clk 0:00:17.8]} 23. Bxd5 {[%clk 0:00:39.3]}
23... dxe3 {[%clk 0:00:16.9]} 24. fxe3 {[%clk 0:00:34.4]} 24... Rfe8 {[%clk
0:00:15.7]} 25. e4 {[%clk 0:00:28.6]} 25... Rac8 {[%clk 0:00:14.5]} 26. Rf1
{[%clk 0:00:27]} 26... Qxb2 {[%clk 0:00:13.4]} 27. Bxf7+ {[%clk 0:00:26.1]}
27... Kh8 {[%clk 0:00:13.6]} 28. Bxe8 {[%clk 0:00:24.4]} 28... Qe5 {[%clk
0:00:12.1]} 29. Bd7 {[%clk 0:00:21.9]} 29... Rc5 {[%clk 0:00:09.5]} 30. Bb4
{[%clk 0:00:20.3]} 30... Rc7 {[%clk 0:00:08.6]} 31. Ba4 {[%clk 0:00:18.9]} 31...
b5 {[%clk 0:00:07.8]} 32. Bb3 {[%clk 0:00:16.8]} 32... a6 {[%clk 0:00:07.4]} 33.
Bd6 {[%clk 0:00:16.4]} 33... Rd7 {[%clk 0:00:07.2]} 34. Bxe5+ {[%clk 0:00:16.3]}
1-0

[Event "*** Titled Tuesday Blitz"]
[Site "Chess.com"]
[Date "2020.05.26"]
[Round "8"]
[White "zurzan"]
[Black "AlanZhang"]
[Result "0-1"]
[WhiteElo "1943"]
[BlackElo "2240"]
[TimeControl "180+1"]
[EndTime "11:40:50 PDT"]
[Termination "AlanZhang won by resignation"]

1. f4 {[%clk 0:03:00.9]} 1... d6 {[%clk 0:02:58.7]} 2. Nf3 {[%clk 0:03:00.6]}
2... b6 {[%clk 0:02:48.4]} 3. g3 {[%clk 0:03:00.6]} 3... Bb7 {[%clk 0:02:48.8]}
4. Bg2 {[%clk 0:03:01.5]} 4... Nf6 {[%clk 0:02:47.6]} 5. O-O {[%clk 0:03:00.2]}
5... e6 {[%clk 0:02:48.1]} 6. d3 {[%clk 0:03:00.4]} 6... Nbd7 {[%clk 0:02:46.5]}
7. e4 {[%clk 0:03:00.1]} 7... Qe7 {[%clk 0:02:44.8]} 8. a4 {[%clk 0:02:58.1]}
8... h5 {[%clk 0:02:32.7]} 9. h4 {[%clk 0:02:56.5]} 9... d5 {[%clk 0:02:04.8]}
10. e5 {[%clk 0:02:52.5]} 10... Ng4 {[%clk 0:02:03.7]} 11. a5 {[%clk 0:02:49.5]}
11... c5 {[%clk 0:01:52]} 12. axb6 {[%clk 0:02:48.8]} 12... Nxb6 {[%clk
0:01:41.9]} 13. Nc3 {[%clk 0:02:45]} 13... Qd7 {[%clk 0:01:37.4]} 14. Qe1 {[%clk
0:02:29.7]} 14... Be7 {[%clk 0:01:31.7]} 15. Nh2 {[%clk 0:02:15.7]} 15... d4
{[%clk 0:01:27.1]} 16. Ne4 {[%clk 0:02:12.3]} 16... Nxh2 {[%clk 0:01:07.2]} 17.
Kxh2 {[%clk 0:02:11.8]} 17... Nd5 {[%clk 0:01:06.7]} 18. Qa5 {[%clk 0:01:58.6]}
18... Qc6 {[%clk 0:00:35.5]} 19. Rf2 {[%clk 0:01:44.4]} 19... O-O {[%clk
0:00:34.2]} 20. Bd2 {[%clk 0:01:39.1]} 20... Kh8 {[%clk 0:00:29.6]} 21. Rg1
{[%clk 0:01:35.8]} 21... Qb6 {[%clk 0:00:20.6]} 22. Qa3 {[%clk 0:01:32.2]} 22...
c4 {[%clk 0:00:19.1]} 23. Qa2 {[%clk 0:01:29.9]} 23... cxd3 {[%clk 0:00:15.8]}
24. cxd3 {[%clk 0:01:29.6]} 24... Ne3 {[%clk 0:00:15.2]} 25. Ba5 {[%clk
0:01:24.7]} 25... Ng4+ {[%clk 0:00:11.3]} 26. Kh1 {[%clk 0:01:23.5]} 26... Nxf2+
{[%clk 0:00:11.2]} 27. Kh2 {[%clk 0:01:23]} 27... Ng4+ {[%clk 0:00:10.1]} 28.
Kh1 {[%clk 0:01:22.8]} 28... Qb5 {[%clk 0:00:10.7]} 29. Rd1 {[%clk 0:00:27.4]}
29... Bxe4 {[%clk 0:00:09.2]} 30. Rd2 {[%clk 0:00:19.9]} 30... Bxg2+ {[%clk
0:00:08.5]} 31. Kxg2 {[%clk 0:00:19.8]} 31... Rac8 {[%clk 0:00:07.9]} 32. b4
{[%clk 0:00:14.4]} 32... Qb7+ {[%clk 0:00:08]} 33. Kg1 {[%clk 0:00:11]} 33...
Rc1+ {[%clk 0:00:07.6]} 0-1

[Event "*** Titled Tuesday Blitz"]
[Site "Chess.com"]
[Date "2020.05.26"]
[Round "8"]
[White "DishonorOnYourCow"]
[Black "manuellarrea"]
[Result "1-0"]
[WhiteElo "2305"]
[BlackElo "2165"]
[TimeControl "180+1"]
[EndTime "11:40:51 PDT"]
[Termination "DishonorOnYourCow won on time"]

1. d4 {[%clk 0:03:00.9]} 1... Nf6 {[%clk 0:02:59.8]} 2. c4 {[%clk 0:03:00.9]}
2... e6 {[%clk 0:02:59.6]} 3. Nf3 {[%clk 0:03:00.2]} 3... d5 {[%clk 0:02:59]} 4.
Nc3 {[%clk 0:02:56.6]} 4... c5 {[%clk 0:02:58.2]} 5. cxd5 {[%clk 0:02:55]} 5...
Nxd5 {[%clk 0:02:56.7]} 6. e4 {[%clk 0:02:53.2]} 6... Nxc3 {[%clk 0:02:56.3]} 7.
bxc3 {[%clk 0:02:54.1]} 7... cxd4 {[%clk 0:02:56.3]} 8. cxd4 {[%clk 0:02:54.3]}
8... Bb4+ {[%clk 0:02:56.5]} 9. Bd2 {[%clk 0:02:54.7]} 9... Bxd2+ {[%clk
0:02:56.8]} 10. Qxd2 {[%clk 0:02:55.6]} 10... O-O {[%clk 0:02:56.9]} 11. Be2
{[%clk 0:02:50.8]} 11... Nd7 {[%clk 0:02:56.6]} 12. O-O {[%clk 0:02:49.3]} 12...
b6 {[%clk 0:02:56.3]} 13. a4 {[%clk 0:02:36.5]} 13... Bb7 {[%clk 0:02:56.3]} 14.
Bd3 {[%clk 0:02:27.9]} 14... Re8 {[%clk 0:02:39.6]} 15. a5 {[%clk 0:02:22.7]}
15... bxa5 {[%clk 0:02:31.1]} 16. Rxa5 {[%clk 0:02:23.6]} 16... Nf6 {[%clk
0:02:27.9]} 17. Re1 {[%clk 0:02:03.1]} 17... a6 {[%clk 0:01:54.5]} 18. Rg5
{[%clk 0:01:35.1]} 18... h6 {[%clk 0:01:45.5]} 19. Rg3 {[%clk 0:01:30.5]} 19...
Kf8 {[%clk 0:01:38]} 20. Bc2 {[%clk 0:00:43.3]} 20... a5 {[%clk 0:01:23.7]} 21.
Ne5 {[%clk 0:00:28.9]} 21... a4 {[%clk 0:01:16.2]} 22. Ra3 {[%clk 0:00:28]}
22... Re7 {[%clk 0:00:46.6]} 23. f3 {[%clk 0:00:22.7]} 23... Qe8 {[%clk
0:00:36.2]} 24. Rea1 {[%clk 0:00:21.7]} 24... Nd7 {[%clk 0:00:23]} 25. Bxa4
{[%clk 0:00:20.6]} 25... Rxa4 {[%clk 0:00:17.3]} 26. Rxa4 {[%clk 0:00:21.5]}
26... Nxe5 {[%clk 0:00:16.5]} 27. dxe5 {[%clk 0:00:22.4]} 27... Rc7 {[%clk
0:00:15.1]} 28. Qd4 {[%clk 0:00:21.7]} 28... Kg8 {[%clk 0:00:13.7]} 29. Ra7
{[%clk 0:00:20.6]} 29... Qc6 {[%clk 0:00:11.9]} 30. h3 {[%clk 0:00:17.7]} 30...
Kh7 {[%clk 0:00:11]} 31. Kh2 {[%clk 0:00:17.9]} 31... Rc8 {[%clk 0:00:10.5]} 32.
Rb1 {[%clk 0:00:17.3]} 32... Rc7 {[%clk 0:00:07.7]} 33. Qb6 {[%clk 0:00:16.6]}
33... Bc8 {[%clk 0:00:05.7]} 34. Rxc7 {[%clk 0:00:15.7]} 1-0

[Event "*** Titled Tuesday Blitz"]
[Site "Chess.com"]
[Date "2020.05.26"]
[Round "8"]
[White "GoltsevDmitry2000"]
[Black "kingnb"]
[Result "0-1"]
[WhiteElo "2664"]
[BlackElo "2498"]
[TimeControl "180+1"]
[EndTime "11:40:53 PDT"]
[Termination "kingnb won by checkmate"]

1. e4 {[%clk 0:02:59.9]} 1... d5 {[%clk 0:02:59.8]} 2. exd5 {[%clk 0:02:54.7]}
2... Nf6 {[%clk 0:03:00.1]} 3. d4 {[%clk 0:02:48.7]} 3... Bg4 {[%clk 0:02:59.1]}
4. Be2 {[%clk 0:02:48.3]} 4... Bxe2 {[%clk 0:02:58.7]} 5. Nxe2 {[%clk
0:02:49.2]} 5... Qxd5 {[%clk 0:02:59.6]} 6. O-O {[%clk 0:02:49.6]} 6... Nc6
{[%clk 0:02:59.7]} 7. Nbc3 {[%clk 0:02:48.1]} 7... Qh5 {[%clk 0:02:59.5]} 8. h3
{[%clk 0:02:48.2]} 8... O-O-O {[%clk 0:02:57.6]} 9. Be3 {[%clk 0:02:44.9]} 9...
e6 {[%clk 0:02:57.4]} 10. a3 {[%clk 0:02:43]} 10... g5 {[%clk 0:02:55.8]} 11.
Ng3 {[%clk 0:02:38.3]} 11... Qxd1 {[%clk 0:02:54.1]} 12. Raxd1 {[%clk
0:02:39.2]} 12... h6 {[%clk 0:02:55]} 13. f4 {[%clk 0:02:34.7]} 13... g4 {[%clk
0:02:49.6]} 14. h4 {[%clk 0:02:27.6]} 14... Bd6 {[%clk 0:02:45.4]} 15. Nce2
{[%clk 0:02:02.3]} 15... Nd5 {[%clk 0:02:42.7]} 16. Bc1 {[%clk 0:01:58.1]} 16...
f5 {[%clk 0:02:42.9]} 17. c4 {[%clk 0:01:52.9]} 17... Nf6 {[%clk 0:02:42.9]} 18.
b4 {[%clk 0:01:51.3]} 18... Rhe8 {[%clk 0:02:33.2]} 19. Be3 {[%clk 0:01:48]}
19... Bf8 {[%clk 0:02:30.3]} 20. Nc3 {[%clk 0:01:44]} 20... a6 {[%clk
0:02:30.2]} 21. Kf2 {[%clk 0:01:33.7]} 21... Ne7 {[%clk 0:02:25.7]} 22. Nge2
{[%clk 0:01:29.3]} 22... Ng6 {[%clk 0:02:20.2]} 23. g3 {[%clk 0:01:29.2]} 23...
Nh8 {[%clk 0:02:20.1]} 24. Nc1 {[%clk 0:01:29.1]} 24... Nf7 {[%clk 0:02:19.9]}
25. Nd3 {[%clk 0:01:28.7]} 25... Nd6 {[%clk 0:02:20]} 26. Nc5 {[%clk 0:01:24.6]}
26... Nxc4 {[%clk 0:02:19.2]} 27. Bc1 {[%clk 0:01:24.5]} 27... b6 {[%clk
0:02:09.8]} 28. Nxa6 {[%clk 0:01:20.5]} 28... Kb7 {[%clk 0:02:09.9]} 29. b5
{[%clk 0:01:20]} 29... Nxa3 {[%clk 0:02:00.1]} 30. Rfe1 {[%clk 0:00:53.5]} 30...
Nd5 {[%clk 0:01:54.9]} 31. Nxd5 {[%clk 0:00:40.8]} 31... Rxd5 {[%clk 0:01:55.8]}
32. Bxa3 {[%clk 0:00:37.7]} 32... Bxa3 {[%clk 0:01:56.7]} 33. Rd3 {[%clk
0:00:29.2]} 33... Bd6 {[%clk 0:01:43.4]} 34. Rc1 {[%clk 0:00:24.7]} 34... Rxb5
{[%clk 0:01:40.6]} 35. Ra1 {[%clk 0:00:16.8]} 35... Ra8 {[%clk 0:01:35.7]} 36.
Re3 {[%clk 0:00:11.4]} 36... Rb2+ {[%clk 0:01:31.9]} 37. Kf1 {[%clk 0:00:10.4]}
37... Rxa6 {[%clk 0:01:30.7]} 38. Rxa6 {[%clk 0:00:11.3]} 38... Kxa6 {[%clk
0:01:31.6]} 39. Rxe6 {[%clk 0:00:12]} 39... b5 {[%clk 0:01:28.1]} 40. Rxh6
{[%clk 0:00:12.4]} 40... b4 {[%clk 0:01:28.7]} 41. Rf6 {[%clk 0:00:12.4]} 41...
b3 {[%clk 0:01:29.1]} 42. Rxf5 {[%clk 0:00:10.4]} 42... Rd2 {[%clk 0:01:26.8]}
43. Ke1 {[%clk 0:00:09.1]} 43... Rh2 {[%clk 0:01:23.8]} 44. Kd1 {[%clk
0:00:02.9]} 44... b2 {[%clk 0:01:22.4]} 45. h5 {[%clk 0:00:01]} 45... b1=Q#
{[%clk 0:01:21]} 0-1

[Event "*** Titled Tuesday Blitz"]
[Site "Chess.com"]
[Date "2020.05.26"]
[Round "8"]
[White "Boudicca64"]
[Black "KerryStead"]
[Result "1-0"]
[WhiteElo "1991"]
[BlackElo "2098"]
[TimeControl "180+1"]
[EndTime "11:40:53 PDT"]
[Termination "Boudicca64 won on time"]

1. e4 {[%clk 0:02:59.2]} 1... e5 {[%clk 0:02:12.1]} 2. d4 {[%clk 0:02:56.9]}
2... exd4 {[%clk 0:02:10.6]} 3. Qxd4 {[%clk 0:02:56.3]} 3... Nc6 {[%clk
0:02:09.7]} 4. Qe3 {[%clk 0:02:55.7]} 4... Nf6 {[%clk 0:00:51.9]} 5. Nc3 {[%clk
0:02:52.9]} 5... Bb4 {[%clk 0:00:47.7]} 6. Bd2 {[%clk 0:02:52.5]} 6... d6 {[%clk
0:00:45.9]} 7. O-O-O {[%clk 0:02:51.4]} 7... Qe7 {[%clk 0:00:45.3]} 8. f3 {[%clk
0:02:48.3]} 8... Bd7 {[%clk 0:00:43.2]} 9. Nge2 {[%clk 0:02:46.9]} 9... O-O-O
{[%clk 0:00:27.7]} 10. Nf4 {[%clk 0:02:45.3]} 10... Kb8 {[%clk 0:00:25.4]} 11.
Nfd5 {[%clk 0:02:40.2]} 11... Nxd5 {[%clk 0:00:24.9]} 12. Nxd5 {[%clk
0:02:38.5]} 12... Bxd2+ {[%clk 0:00:24.5]} 13. Rxd2 {[%clk 0:02:35.5]} 13... Qh4
{[%clk 0:00:23.3]} 14. Bb5 {[%clk 0:02:23.4]} 14... Rhe8 {[%clk 0:00:19.5]} 15.
Qa3 {[%clk 0:02:16.6]} 15... Re5 {[%clk 0:00:15]} 16. Rhd1 {[%clk 0:02:04.6]}
16... Ne7 {[%clk 0:00:14.4]} 17. Bxd7 {[%clk 0:01:55.2]} 17... Rxd7 {[%clk
0:00:15.3]} 18. Qa5 {[%clk 0:01:45.2]} 18... b6 {[%clk 0:00:14.2]} 19. Qc3
{[%clk 0:01:39.2]} 19... c5 {[%clk 0:00:12.7]} 20. Nxe7 {[%clk 0:01:32.9]} 20...
Qxe7 {[%clk 0:00:12]} 21. Qc4 {[%clk 0:01:12.3]} 21... f6 {[%clk 0:00:10.5]} 22.
Qb5 {[%clk 0:01:11]} 22... Kb7 {[%clk 0:00:10.1]} 23. a4 {[%clk 0:01:08.7]}
23... a6 {[%clk 0:00:10]} 24. Qb3 {[%clk 0:01:05]} 24... Kc6 {[%clk 0:00:09.6]}
25. a5 {[%clk 0:01:02]} 25... b5 {[%clk 0:00:09.6]} 26. Rd5 {[%clk 0:00:57.2]}
26... Rxd5 {[%clk 0:00:06.8]} 27. Qxd5+ {[%clk 0:00:55.8]} 27... Kc7 {[%clk
0:00:07.1]} 28. Qa8 {[%clk 0:00:52.7]} 28... d5 {[%clk 0:00:03.7]} 29. Qxa6
{[%clk 0:00:48.9]} 29... dxe4 {[%clk 0:00:02.8]} 30. Qb6+ {[%clk 0:00:46.9]}
30... Kc8 {[%clk 0:00:02.8]} 31. Qc6+ {[%clk 0:00:38.7]} 31... Rc7 {[%clk
0:00:02.2]} 32. Qxb5 {[%clk 0:00:36.7]} 32... exf3 {[%clk 0:00:02.1]} 33. gxf3
{[%clk 0:00:32.4]} 33... c4 {[%clk 0:00:01.9]} 34. a6 {[%clk 0:00:18.7]} 1-0

[Event "*** Titled Tuesday Blitz"]
[Site "Chess.com"]
[Date "2020.05.26"]
[Round "8"]
[White "TargetA"]
[Black "rpragchess"]
[Result "1/2-1/2"]
[WhiteElo "2575"]
[BlackElo "2817"]
[TimeControl "180+1"]
[EndTime "11:40:54 PDT"]
[Termination "Game drawn by repetition"]

1. e4 {[%clk 0:03:00.9]} 1... e5 {[%clk 0:02:50.3]} 2. Nf3 {[%clk 0:02:59.7]}
2... d6 {[%clk 0:02:50.6]} 3. d4 {[%clk 0:02:59]} 3... exd4 {[%clk 0:02:51.5]}
4. Nxd4 {[%clk 0:02:58.9]} 4... Nf6 {[%clk 0:02:51.7]} 5. Nc3 {[%clk 0:02:58.9]}
5... Be7 {[%clk 0:02:52.1]} 6. Bf4 {[%clk 0:02:58.8]} 6... O-O {[%clk
0:02:50.2]} 7. Qd2 {[%clk 0:02:58]} 7... c6 {[%clk 0:02:45.9]} 8. O-O-O {[%clk
0:02:56.5]} 8... b5 {[%clk 0:02:46]} 9. f3 {[%clk 0:02:46.3]} 9... b4 {[%clk
0:02:16.7]} 10. Na4 {[%clk 0:02:44.3]} 10... Qa5 {[%clk 0:02:10]} 11. b3 {[%clk
0:02:43.6]} 11... Rd8 {[%clk 0:01:56.1]} 12. g4 {[%clk 0:02:37]} 12... c5 {[%clk
0:01:35.3]} 13. Nf5 {[%clk 0:02:15.3]} 13... Bxf5 {[%clk 0:01:34.3]} 14. gxf5
{[%clk 0:02:16.2]} 14... Nc6 {[%clk 0:01:31.9]} 15. Rg1 {[%clk 0:01:52.5]} 15...
Nh5 {[%clk 0:01:14.2]} 16. Bg5 {[%clk 0:01:45]} 16... Qc7 {[%clk 0:01:13.2]} 17.
f4 {[%clk 0:01:29.2]} 17... Bxg5 {[%clk 0:00:47.7]} 18. Rxg5 {[%clk 0:01:20.9]}
18... Nf6 {[%clk 0:00:47.4]} 19. Qg2 {[%clk 0:01:18]} 19... g6 {[%clk
0:00:47.2]} 20. Bc4 {[%clk 0:01:14.4]} 20... d5 {[%clk 0:00:42.1]} 21. Bxd5
{[%clk 0:01:00.7]} 21... Nxd5 {[%clk 0:00:39.6]} 22. exd5 {[%clk 0:00:57.8]}
22... Nd4 {[%clk 0:00:32.4]} 23. fxg6 {[%clk 0:00:47.4]} 23... hxg6 {[%clk
0:00:28.9]} 24. f5 {[%clk 0:00:43.9]} 24... Qf4+ {[%clk 0:00:27.7]} 25. Kb1
{[%clk 0:00:43.5]} 25... Re8 {[%clk 0:00:06.6]} 26. Rxg6+ {[%clk 0:00:20]} 26...
fxg6 {[%clk 0:00:06.6]} 27. Qxg6+ {[%clk 0:00:20.9]} 27... Kh8 {[%clk
0:00:07.2]} 28. Qh5+ {[%clk 0:00:20.4]} 28... Kg7 {[%clk 0:00:07.5]} 29. Qg6+
{[%clk 0:00:20.7]} 29... Kh8 {[%clk 0:00:07.5]} 30. Qh5+ {[%clk 0:00:15.5]}
30... Kg7 {[%clk 0:00:07.4]} 31. Qg6+ {[%clk 0:00:06.1]} 31... Kh8 {[%clk
0:00:07.1]} 1/2-1/2

[Event "*** Titled Tuesday Blitz"]
[Site "Chess.com"]
[Date "2020.05.26"]
[Round "8"]
[White "stoleriu"]
[Black "ChessyInstinct"]
[Result "1-0"]
[WhiteElo "2564"]
[BlackElo "2411"]
[TimeControl "180+1"]
[EndTime "11:40:56 PDT"]
[Termination "stoleriu won on time"]

1. b3 {[%clk 0:02:57.6]} 1... d5 {[%clk 0:02:55.5]} 2. Bb2 {[%clk 0:02:58.1]}
2... c5 {[%clk 0:02:54.6]} 3. e3 {[%clk 0:02:58]} 3... Nc6 {[%clk 0:02:54.9]} 4.
Bb5 {[%clk 0:02:57.9]} 4... Bd7 {[%clk 0:02:55]} 5. f4 {[%clk 0:02:57.9]} 5...
Nf6 {[%clk 0:02:52.2]} 6. Nf3 {[%clk 0:02:57.6]} 6... g6 {[%clk 0:02:52]} 7. O-O
{[%clk 0:02:56]} 7... Bg7 {[%clk 0:02:51.8]} 8. Qe1 {[%clk 0:02:50.7]} 8... Qc7
{[%clk 0:02:25.6]} 9. Bxc6 {[%clk 0:02:46.3]} 9... Bxc6 {[%clk 0:02:25.5]} 10.
d3 {[%clk 0:02:46.8]} 10... O-O {[%clk 0:02:25.1]} 11. Qh4 {[%clk 0:02:35.3]}
11... Nd7 {[%clk 0:02:06]} 12. Bxg7 {[%clk 0:02:29.5]} 12... Kxg7 {[%clk
0:02:06.9]} 13. Nbd2 {[%clk 0:02:28.8]} 13... Rae8 {[%clk 0:02:00.7]} 14. Rae1
{[%clk 0:02:21.9]} 14... e5 {[%clk 0:01:28.3]} 15. fxe5 {[%clk 0:02:09.8]} 15...
Nxe5 {[%clk 0:01:28.2]} 16. Nxe5 {[%clk 0:02:09.2]} 16... Qxe5 {[%clk
0:01:27.1]} 17. Nf3 {[%clk 0:02:09.4]} 17... Qe7 {[%clk 0:01:02.2]} 18. Qg3
{[%clk 0:01:56.2]} 18... f5 {[%clk 0:00:49.9]} 19. Nh4 {[%clk 0:01:38.4]} 19...
Qe5 {[%clk 0:00:45.1]} 20. Rf4 {[%clk 0:01:32.1]} 20... d4 {[%clk 0:00:30.2]}
21. Nf3 {[%clk 0:01:03.3]} 21... Bxf3 {[%clk 0:00:21.4]} 22. Rxf3 {[%clk
0:01:04.2]} 22... Qxg3 {[%clk 0:00:19]} 23. hxg3 {[%clk 0:01:00.6]} 23... Re5
{[%clk 0:00:17]} 24. e4 {[%clk 0:00:33.8]} 24... Rfe8 {[%clk 0:00:12.9]} 25.
Ref1 {[%clk 0:00:26.4]} 25... fxe4 {[%clk 0:00:03.8]} 26. Rf7+ {[%clk
0:00:25.9]} 26... Kh6 {[%clk 0:00:04.1]} 27. Rxb7 {[%clk 0:00:23.9]} 27... exd3
{[%clk 0:00:02.9]} 28. cxd3 {[%clk 0:00:24]} 28... Re1 {[%clk 0:00:03.8]} 29.
Rxa7 {[%clk 0:00:22.3]} 29... R8e3 {[%clk 0:00:01.5]} 30. Rxe1 {[%clk
0:00:20.6]} 30... Rxe1+ {[%clk 0:00:02.4]} 31. Kf2 {[%clk 0:00:21.5]} 31... Rd1
{[%clk 0:00:01.5]} 32. Ke2 {[%clk 0:00:22.2]} 32... Rg1 {[%clk 0:00:01.8]} 33.
Ra5 {[%clk 0:00:11.2]} 33... Rxg2+ {[%clk 0:00:01.9]} 34. Kf3 {[%clk 0:00:11.9]}
34... Rd2 {[%clk 0:00:01.5]} 35. Ke4 {[%clk 0:00:12.6]} 1-0

[Event "*** Titled Tuesday Blitz"]
[Site "Chess.com"]
[Date "2020.05.26"]
[Round "8"]
[White "AttilaTurzo"]
[Black "Playgood28"]
[Result "1-0"]
[WhiteElo "2440"]
[BlackElo "2291"]
[TimeControl "180+1"]
[EndTime "11:40:58 PDT"]
[Termination "AttilaTurzo won by resignation"]

1. e4 {[%clk 0:03:00.9]} 1... e5 {[%clk 0:02:59.6]} 2. Nf3 {[%clk 0:03:00.4]}
2... d6 {[%clk 0:02:59.4]} 3. d4 {[%clk 0:02:59.2]} 3... exd4 {[%clk 0:02:59.3]}
4. Nxd4 {[%clk 0:03:00.1]} 4... Nf6 {[%clk 0:02:59]} 5. Nc3 {[%clk 0:03:00.4]}
5... Be7 {[%clk 0:02:59.4]} 6. Bf4 {[%clk 0:03:00.2]} 6... O-O {[%clk
0:02:58.5]} 7. Qd2 {[%clk 0:03:00.8]} 7... a6 {[%clk 0:02:59.1]} 8. O-O-O {[%clk
0:03:01]} 8... b5 {[%clk 0:02:59.5]} 9. f3 {[%clk 0:02:59.4]} 9... c5 {[%clk
0:02:59]} 10. Nf5 {[%clk 0:02:39.7]} 10... Bxf5 {[%clk 0:02:57.7]} 11. exf5
{[%clk 0:02:39.9]} 11... Nc6 {[%clk 0:02:57.9]} 12. Bxd6 {[%clk 0:02:37.2]}
12... Qa5 {[%clk 0:02:55.2]} 13. Bxe7 {[%clk 0:02:25.3]} 13... Nxe7 {[%clk
0:02:56]} 14. Kb1 {[%clk 0:02:19.9]} 14... Rad8 {[%clk 0:02:52.2]} 15. Bd3
{[%clk 0:01:41]} 15... b4 {[%clk 0:02:35.4]} 16. Ne4 {[%clk 0:01:27.5]} 16...
Nxe4 {[%clk 0:02:33.3]} 17. fxe4 {[%clk 0:01:26.3]} 17... c4 {[%clk 0:02:23.4]}
18. Qg5 {[%clk 0:01:15.6]} 18... cxd3 {[%clk 0:02:11.1]} 19. Qxe7 {[%clk
0:01:12.8]} 19... dxc2+ {[%clk 0:02:10.1]} 20. Kxc2 {[%clk 0:01:13.7]} 20...
Qa4+ {[%clk 0:02:06.3]} 21. Kc1 {[%clk 0:01:10.7]} 21... Rc8+ {[%clk 0:01:18.1]}
22. Kb1 {[%clk 0:01:10.4]} 22... b3 {[%clk 0:01:17.7]} 23. axb3 {[%clk
0:00:51.5]} 23... Qxb3 {[%clk 0:01:15.4]} 24. Rd2 {[%clk 0:00:50.2]} 24... Rfe8
{[%clk 0:01:09.3]} 25. Qd7 {[%clk 0:00:47.2]} 25... Qc4 {[%clk 0:00:59.8]} 26.
Re1 {[%clk 0:00:44.3]} 26... h6 {[%clk 0:00:56.6]} 27. Qd3 {[%clk 0:00:41.4]}
27... Qc6 {[%clk 0:00:44.9]} 28. e5 {[%clk 0:00:38.8]} 28... a5 {[%clk
0:00:38.3]} 29. e6 {[%clk 0:00:38.9]} 29... fxe6 {[%clk 0:00:37.8]} 30. f6
{[%clk 0:00:39.4]} 30... gxf6 {[%clk 0:00:30]} 31. Qg6+ {[%clk 0:00:39.2]} 31...
Kh8 {[%clk 0:00:30.3]} 32. Qxh6+ {[%clk 0:00:35.2]} 32... Kg8 {[%clk 0:00:29.8]}
33. Qg6+ {[%clk 0:00:29]} 33... Kh8 {[%clk 0:00:29.4]} 34. Re3 {[%clk 0:00:18]}
34... Qc1+ {[%clk 0:00:22.4]} 35. Ka2 {[%clk 0:00:18.1]} 35... Qc4+ {[%clk
0:00:15.1]} 36. b3 {[%clk 0:00:17.9]} 36... Qh4 {[%clk 0:00:11.9]} 37. Rh3
{[%clk 0:00:16]} 37... Qxh3 {[%clk 0:00:11.2]} 38. gxh3 {[%clk 0:00:16.9]} 1-0